bitfinex/quotes_BTCUSD_20250330
["timestamp","ask_amount","ask_price","bid_price","bid_amount"]
[1743374954490,0.31806429,82697.0,82696.0,0.00047765]
[1743374954695,0.017092,82696.0,82695.0,2.5e-07]
[1743374954892,0.09764574,82696.0,82695.0,2.5e-07]
[1743374955348,0.06625174,82696.0,82695.0,2.5e-07]
[1743374955501,0.36625174,82696.0,82695.0,2.5e-07]
[1743374955849,0.36382589,82696.0,82695.0,2.5e-07]
[1743374956141,0.36882589,82696.0,82695.0,2.5e-07]
[1743374956766,0.37182589,82696.0,82695.0,2.5e-07]
[1743374958731,0.33975601,82696.0,82695.0,2.5e-07]
[1743374959112,0.32021516,82696.0,82695.0,2.5e-07]
[1743374959523,0.33975601,82696.0,82695.0,2.5e-07]
[1743374959934,0.33975601,82696.0,82682.0,0.000337]
[1743374959935,0.03163285,82694.0,82693.0,4.5e-07]
[1743374960133,0.04020604,82694.0,82693.0,4.5e-07]
[1743374960334,0.005,82686.0,82685.0,6.5e-07]
[1743374960653,0.3340597,82686.0,82685.0,6.5e-07]
[1743374960884,0.36370373,82686.0,82685.0,6.5e-07]
[1743374961114,0.32663385,82686.0,82685.0,6.5e-07]
[1743374961339,0.33163385,82686.0,82685.0,6.5e-07]
[1743374961554,0.04068212,82686.0,82685.0,6.5e-07]
[1743374961781,0.02356712,82686.0,82685.0,6.5e-07]
[1743374962007,0.02114127,82686.0,82685.0,6.5e-07]
[1743374962458,0.02356712,82686.0,82685.0,6.5e-07]
[1743374963180,0.03356712,82686.0,82685.0,6.5e-07]
[1743374963879,5.663e-05,82686.0,82685.0,6.5e-07]
[1743374964117,0.1009352,82687.0,82686.0,1.00105072]
[1743374964869,0.11010299,82687.0,82686.0,1.00105072]
[1743374965567,0.12964384,82687.0,82686.0,1.00105072]
[1743374965818,0.16171372,82687.0,82686.0,1.00105072]
[1743374966336,0.16171372,82687.0,82686.0,0.96175072]
[1743374967072,0.16571372,82687.0,82686.0,0.96175072]
[1743374967311,0.17071372,82687.0,82686.0,0.90110509]
[1743374968534,0.13864384,82687.0,82686.0,0.90110509]
[1743374968774,0.17071372,82687.0,82686.0,0.90110509]
[1743374969232,0.15117287,82687.0,82686.0,0.90110509]
[1743374969462,0.1099352,82687.0,82686.0,0.90110509]
[1743374969759,0.10998064,82687.0,82686.0,0.90110509]
[1743374970405,0.10498064,82687.0,82686.0,0.90110509]
[1743374970873,0.40098064,82687.0,82686.0,0.90144229]
[1743374971108,0.40198064,82687.0,82686.0,0.90144229]
[1743374971857,0.40598064,82687.0,82686.0,0.90144229]
[1743374974158,0.005,82687.0,82686.0,0.90144229]
[1743374974376,0.246875,82687.0,82686.0,0.90144229]
[1743374974590,0.258968,82687.0,82686.0,0.90144229]
[1743374974793,0.25901389,82687.0,82686.0,0.90144229]
[1743374975021,0.26501019,82687.0,82686.0,0.90144229]
[1743374976456,0.26101019,82687.0,82686.0,0.90144229]
[1743374976677,0.26401019,82687.0,82686.0,0.90144229]
[1743374977566,0.01004219,82687.0,82686.0,0.90144229]
[1743374977773,0.26401019,82687.0,82686.0,0.90144229]
[1743374978896,0.26001019,82687.0,82686.0,0.90144229]
[1743374979075,0.26101019,82687.0,82686.0,0.90144229]
[1743374979916,0.26105152,82687.0,82686.0,0.90144229]
[1743374980729,0.56105152,82687.0,82686.0,0.90144229]
[1743374982597,0.00725212,82687.0,82686.0,0.90144229]
[1743374982797,0.00725212,82687.0,82686.0,1.23141329]
[1743374983009,0.0011686,82687.0,82686.0,1.28031329]
[1743374984314,0.0001686,82696.0,82695.0,0.253944]
[1743374984531,0.0001686,82696.0,82695.0,0.378844]
[1743374984785,0.0001686,82696.0,82695.0,0.45406974]
[1743374985994,0.0001686,82696.0,82695.0,0.45506974]
[1743374986833,0.0001686,82696.0,82695.0,0.45406974]
[1743374987028,0.0001686,82696.0,82695.0,0.45706974]
[1743374987788,0.0001686,82696.0,82695.0,0.381844]
[1743374987935,0.0001686,82696.0,82695.0,0.1289]
[1743374988136,0.01193127,82696.0,82695.0,0.1289]
[1743374988342,0.01812132,82696.0,82695.0,0.1279]
[1743374988540,0.03021332,82696.0,82695.0,0.1279]
[1743374988893,0.27206232,82696.0,82695.0,0.1299]
[1743374989105,0.01812132,82696.0,82695.0,0.1299]
[1743374989465,0.01193127,82696.0,82695.0,0.141992]
[1743374989665,0.01810102,82696.0,82695.0,0.141992]
[1743374989875,0.01193127,82696.0,82695.0,0.141992]
[1743374991492,0.0001686,82696.0,82695.0,0.141992]
[1743374993870,0.0001686,82696.0,82695.0,0.14441032]
[1743374994114,0.0001686,82696.0,82695.0,0.141992]
[1743374996360,0.0001686,82696.0,82695.0,0.299072]
[1743375002033,0.2541096,82696.0,82695.0,0.005]
[1743375002226,0.5541096,82696.0,82695.0,0.005]
[1743375002384,0.56036601,82696.0,82695.0,0.005]
[1743375002984,0.56036601,82696.0,82695.0,0.003]
[1743375003383,0.56036601,82696.0,82686.0,0.90144229]
[1743375003384,0.253964,82689.0,82686.0,0.90144229]
[1743375003923,0.253961,82690.0,82686.0,0.90144229]
[1743375004079,0.012093,82688.0,82686.0,0.90144229]
[1743375004919,0.253957,82692.0,82686.0,0.90144229]
[1743375005118,0.00604076,82688.0,82686.0,0.90144229]
[1743375005270,0.253957,82692.0,82686.0,0.90144229]
[1743375005682,0.0002127,82691.0,82686.0,0.90144229]
[1743375005904,0.0002127,82691.0,82686.0,1.14332029]
[1743375006113,0.0002127,82691.0,82687.0,0.0124302]
[1743375006349,0.0002127,82691.0,82688.0,0.012093]
[1743375006525,0.0002127,82691.0,82690.0,0.012093]
[1743375006724,0.0001686,82696.0,82695.0,0.088592]
[1743375007156,0.0001686,82696.0,82695.0,0.136292]
[1743375007360,0.0001686,82696.0,82695.0,0.2418115]
[1743375008478,0.0001686,82696.0,82695.0,0.136292]
[1743375010135,0.0001686,82696.0,82695.0,0.137292]
[1743375010336,0.0001686,82696.0,82695.0,0.136292]
[1743375010545,0.00634571,82696.0,82695.0,0.139292]
[1743375011329,0.00634571,82696.0,82695.0,0.141292]
[1743375011533,0.00634571,82696.0,82695.0,0.0815]
[1743375011729,0.00634571,82696.0,82695.0,0.005]
[1743375011910,0.01843771,82696.0,82695.0,0.005]
[1743375013989,0.31843771,82696.0,82695.0,0.005]
[1743375014204,0.31830047,82696.0,82695.0,0.005]
[1743375014913,0.31830047,82696.0,82695.0,0.003]
[1743375015412,0.32030047,82696.0,82695.0,0.003]
[1743375015921,0.32130047,82696.0,82695.0,0.003]
[1743375018189,0.32134179,82696.0,82695.0,0.003]
[1743375020317,0.00924979,82696.0,82695.0,0.003]
[1743375020513,0.00924979,82696.0,82695.0,0.2814296]
[1743375020714,0.2450176,82696.0,82695.0,0.003]
[1743375020941,0.2571096,82696.0,82695.0,0.003]
[1743375021144,0.26316793,82696.0,82695.0,0.003]
[1743375021591,0.24907593,82696.0,82695.0,0.003]
[1743375021795,0.24907593,82696.0,82692.0,0.0782]
[1743375022012,0.24923852,82696.0,82692.0,0.0782]
[1743375023519,0.24823852,82696.0,82692.0,0.0782]
[1743375023915,0.24923852,82696.0,82692.0,0.0782]
[1743375024464,0.00738952,82696.0,82692.0,0.0782]
[1743375024873,0.24923852,82696.0,82692.0,0.0782]
[1743375025966,0.241855,82694.0,82692.0,0.0782]
[1743375026167,0.253966,82688.0,82687.0,0.0003372]
[1743375026596,0.25415509,82688.0,82687.0,0.0003372]
[1743375027495,0.00018909,82688.0,82687.0,0.0003372]
[1743375027910,0.012093,82688.0,82687.0,0.0003372]
[1743375028110,0.00615632,82688.0,82687.0,0.0003372]
[1743375028819,0.00615632,82688.0,82687.0,0.0154302]
[1743375029079,0.24187,82689.0,82687.0,0.0033372]
[1743375029446,0.241864,82692.0,82687.0,0.0033372]
[1743375029690,0.0001686,82696.0,82690.0,0.253958]
[1743375029865,0.00013887,82691.0,82688.0,0.241873]
[1743375030111,0.00013887,82691.0,82690.0,0.25396]
[1743375030320,0.00013887,82691.0,82690.0,0.37424483]
[1743375030529,0.00013887,82691.0,82690.0,0.45034483]
[1743375030940,0.0001686,82696.0,82693.0,0.253949]
[1743375031090,0.0001686,82696.0,82691.0,0.241864]
[1743375031300,0.01241259,82695.0,82691.0,0.241864]
[1743375032515,0.01241259,82695.0,82694.0,0.059292]
[1743375032749,0.01241259,82695.0,82694.0,0.30169017]
[1743375032931,0.0001686,82696.0,82695.0,0.253944]
[1743375033082,0.0011686,82696.0,82695.0,0.39878485]
[1743375033873,0.0001686,82696.0,82695.0,0.541124]
[1743375034356,0.0001686,82696.0,82695.0,0.545124]
[1743375034587,0.0001686,82696.0,82695.0,0.66540883]
[1743375035108,0.0122606,82696.0,82695.0,0.1383]
[1743375035287,0.0122606,82696.0,82695.0,0.0911]
[1743375035540,0.03697891,82696.0,82695.0,0.008]
[1743375036263,0.03697891,82696.0,82695.0,0.004]
[1743375037307,0.02488691,82696.0,82692.0,0.012093]
[1743375037515,0.27882891,82696.0,82695.0,0.002]
[1743375037713,0.57882891,82696.0,82695.0,0.002]
[1743375038291,0.253964,82689.0,82687.0,0.0003372]
[1743375038494,0.012093,82688.0,82687.0,0.0003372]
[1743375038905,0.0121994,82688.0,82687.0,0.0003372]
[1743375040092,0.012093,82688.0,82687.0,0.0003372]
[1743375040380,0.02447932,82688.0,82687.0,0.0003372]
[1743375040850,0.02447932,82688.0,82687.0,0.0033372]
[1743375041069,0.02447932,82688.0,82687.0,0.0023372]
[1743375041464,0.02447932,82688.0,82687.0,0.0013372]
[1743375042064,0.01238632,82688.0,82687.0,0.0134302]
[1743375042270,0.01238632,82688.0,82687.0,0.0965302]
[1743375042474,0.01241717,82696.0,82689.0,0.012093]
[1743375042898,0.01241717,82696.0,82692.0,0.012093]
[1743375043116,0.0001686,82696.0,82695.0,0.012092]
[1743375044339,0.0011686,82696.0,82695.0,0.012092]
[1743375044540,0.0001686,82696.0,82695.0,0.012092]
[1743375044885,0.0001686,82696.0,82695.0,0.013092]
[1743375045255,0.0001686,82696.0,82695.0,0.012092]
[1743375045499,0.23828162,82706.0,82696.0,0.253941]
[1743375045675,0.23828162,82706.0,82698.0,0.241843]
[1743375045878,0.012091,82705.0,82698.0,0.253935]
[1743375046083,0.01174638,82706.0,82702.0,0.012091]
[1743375046296,0.01174638,82706.0,82705.0,0.012091]
[1743375046550,0.3,82714.0,82708.0,0.01209]
[1743375046931,0.3,82714.0,82708.0,0.253904]
[1743375047076,0.31165671,82714.0,82708.0,0.253904]
[1743375047479,0.01165671,82714.0,82709.0,0.01209]
[1743375047679,0.3,82716.0,82713.0,0.241799]
[1743375047881,0.005,82745.0,82713.0,0.241799]
[1743375047882,0.003,82714.0,82713.0,0.3058754]
[1743375048284,0.001,82714.0,82713.0,0.3058754]
[1743375048525,0.001,82714.0,82713.0,0.253888]
[1743375048753,0.3,82722.0,82721.0,0.253864]
[1743375049082,0.012087,82728.0,82721.0,0.253864]
[1743375049220,0.312087,82728.0,82722.0,0.010088]
[1743375049426,0.01188175,82728.0,82726.0,0.012088]
[1743375049630,0.253828,82733.0,82727.0,0.012087]
[1743375049832,0.312087,82730.0,82725.0,0.0795]
[1743375050035,0.312087,82730.0,82725.0,0.07964075]
[1743375050217,0.00944161,82729.0,82725.0,0.07964075]
[1743375050422,0.02134487,82729.0,82725.0,0.07964075]
[1743375050829,0.00944161,82729.0,82728.0,0.012087]
[1743375051025,0.001,82730.0,82728.0,0.010087]
[1743375051256,0.012086,82737.0,82731.0,0.012087]
[1743375051461,0.00961324,82736.0,82731.0,0.012087]
[1743375051924,0.00961324,82736.0,82735.0,0.012086]
[1743375052256,0.00961324,82736.0,82735.0,0.0632686]
[1743375052383,0.0119941,82739.0,82737.0,0.012086]
[1743375052577,0.312085,82744.0,82737.0,0.012086]
[1743375052773,0.00961324,82738.0,82736.0,0.241732]
[1743375052973,0.253797,82743.0,82736.0,0.241732]
[1743375053173,0.00961324,82737.0,82736.0,0.241732]
[1743375053373,0.253797,82743.0,82736.0,0.241732]
[1743375053624,0.00961324,82737.0,82729.0,0.253839]
[1743375053804,0.00961324,82737.0,82726.0,0.08751298]
[1743375053805,0.241728,82738.0,82728.0,0.398514]
[1743375054004,0.241738,82734.0,82728.0,0.15676]
[1743375054676,0.00968766,82733.0,82729.0,0.241753]
[1743375054875,0.2539883,82736.0,82728.0,0.15676]
[1743375055134,0.012087,82727.0,82725.0,0.00014075]
[1743375055345,0.253849,82726.0,82725.0,0.00014075]
[1743375055980,0.553849,82726.0,82725.0,0.00014075]
[1743375057033,0.553849,82726.0,82725.0,0.00214075]
[1743375057457,0.553849,82726.0,82725.0,0.00514075]
[1743375057656,0.553849,82726.0,82725.0,0.00314075]
[1743375058092,0.553849,82726.0,82725.0,0.00114075]
[1743375058304,0.553849,82726.0,82725.0,0.00014075]
[1743375058500,0.556849,82726.0,82725.0,0.00014075]
[1743375058700,0.5569454,82726.0,82725.0,0.00014075]
[1743375058905,0.5539454,82726.0,82725.0,0.00014075]
[1743375059101,0.5549454,82726.0,82725.0,0.00014075]
[1743375059580,0.5569454,82726.0,82725.0,0.00014075]
[1743375059887,0.62118625,82726.0,82725.0,0.00014075]
[1743375060292,0.62418625,82726.0,82725.0,0.00014075]
[1743375060505,0.5579454,82726.0,82725.0,0.00014075]
[1743375064875,0.5579867,82726.0,82725.0,0.00014075]
[1743375065210,0.5674729,82726.0,82725.0,0.00014075]
[1743375065648,0.0126239,82726.0,82725.0,0.25399275]
[1743375065868,0.0124862,82726.0,82725.0,0.30598673]
[1743375066069,0.13428352,82740.0,82733.0,0.241741]
[1743375066270,0.012085,82741.0,82734.0,0.0789]
[1743375066471,0.253808,82740.0,82734.0,0.0789]
[1743375066650,0.32378607,82739.0,82734.0,0.0789]
[1743375066879,0.02378607,82739.0,82734.0,0.0789]
[1743375067468,0.012086,82738.0,82734.0,0.0789]
[1743375068042,0.2539873,82736.0,82734.0,0.0789]
[1743375068241,0.253849,82726.0,82725.0,0.00047735]
[1743375068439,0.55401621,82726.0,82725.0,0.00047735]
[1743375069929,0.30016721,82726.0,82725.0,0.24524135]
[1743375070130,0.30016721,82726.0,82725.0,0.00347735]
[1743375070340,0.30016721,82726.0,82725.0,0.00047735]
[1743375070539,0.30016721,82726.0,82725.0,0.00347735]
[1743375070741,0.30016721,82726.0,82725.0,0.00247735]
[1743375071175,0.30016721,82726.0,82725.0,0.00347735]
[1743375071380,0.00016721,82726.0,82725.0,0.33822935]
[1743375071595,0.00016721,82726.0,82725.0,0.33622935]
[1743375071806,0.3,82730.0,82725.0,0.33622935]
[1743375072017,0.3,82730.0,82729.0,0.012087]
[1743375072376,0.312087,82733.0,82727.0,0.253843]
[1743375072590,0.3,82733.0,82730.0,0.253836]
[1743375072787,0.3,82733.0,82732.0,0.241744]
[1743375072988,0.3,82733.0,82727.0,0.253843]
[1743375073440,0.3,82733.0,82729.0,0.002]
[1743375073635,0.012086,82734.0,82727.0,0.35379614]
[1743375073970,0.3,82733.0,82732.0,0.001]
[1743375074179,0.3,82733.0,82727.0,0.35379614]
[1743375074417,0.00948446,82733.0,82732.0,0.253831]
[1743375074831,0.0001683,82736.0,82732.0,0.253831]
[1743375076075,0.00948445,82735.0,82732.0,0.253831]
[1743375076738,0.00948445,82735.0,82733.0,0.012087]
[1743375078507,0.00948445,82735.0,82699.0,0.4193]
[1743375078724,0.00948445,82735.0,82725.0,0.00047735]
[1743375078725,0.312088,82726.0,82725.0,0.00047735]
[1743375079128,0.32160389,82726.0,82725.0,0.00047735]
[1743375080327,0.32160389,82726.0,82725.0,0.00147735]
[1743375080442,0.012092,82699.0,82695.0,0.0807366]
[1743375080658,0.012092,82699.0,82695.0,0.08083271]
[1743375080659,0.253941,82696.0,82695.0,0.08083271]
[1743375080885,0.26362172,82696.0,82695.0,0.00043271]
[1743375081294,0.00968072,82696.0,82695.0,0.00043271]
[1743375081512,0.00968072,82696.0,82695.0,0.01252471]
[1743375082027,0.012091,82705.0,82697.0,0.012092]
[1743375082247,0.3,82706.0,82702.0,0.241831]
[1743375082521,0.00968072,82704.0,82702.0,0.012091]
[1743375082663,0.3,82706.0,82702.0,0.012091]
[1743375082865,0.00961741,82705.0,82702.0,0.012091]
[1743375083072,0.241832,82702.0,82695.0,0.00543271]
[1743375083288,0.012091,82703.0,82697.0,0.003]
[1743375083486,0.012091,82701.0,82697.0,0.003]
[1743375083693,0.012091,82701.0,82695.0,0.00543271]
[1743375084132,0.012091,82701.0,82695.0,0.00043271]
[1743375084332,0.012091,82701.0,82697.0,0.002]
[1743375084572,0.00013451,82700.0,82697.0,0.002]
[1743375084713,0.24197351,82700.0,82697.0,0.002]
[1743375084925,0.012092,82696.0,82695.0,0.00043271]
[1743375085120,0.253941,82696.0,82695.0,0.00343271]
[1743375085383,0.25407846,82696.0,82695.0,0.00343271]
[1743375085562,0.55404156,82696.0,82695.0,0.00343271]
[1743375085823,0.55404156,82696.0,82695.0,0.00043271]
[1743375086180,0.56865909,82696.0,82695.0,0.00043271]
[1743375087316,0.32681009,82696.0,82695.0,0.00043271]
[1743375087515,0.32781009,82696.0,82695.0,0.00043271]
[1743375092318,0.32781009,82696.0,82695.0,9.611e-05]
[1743375092319,0.34230517,82696.0,82695.0,9.611e-05]
[1743375092527,0.553968,82687.0,82686.0,0.82710733]
[1743375092728,0.73002885,82687.0,82686.0,0.82710733]
[1743375092940,0.72502885,82687.0,82686.0,0.82724772]
[1743375093344,0.73959105,82687.0,82686.0,0.82724772]
[1743375093548,0.73459105,82687.0,82686.0,0.82724772]
[1743375093951,0.74159105,82687.0,82686.0,0.82724772]
[1743375094153,0.73659105,82687.0,82686.0,0.82724772]
[1743375094581,0.73959105,82687.0,82686.0,0.82724772]
[1743375094786,0.5685302,82687.0,82686.0,0.82724772]
[1743375097694,0.59229651,82687.0,82686.0,0.82724772]
[1743375098187,0.60683736,82687.0,82686.0,0.82724772]
[1743375098394,0.61183736,82687.0,82686.0,0.82724772]
[1743375098798,0.61183736,82687.0,82686.0,0.70596772]
[1743375099377,0.60883736,82687.0,82686.0,0.70596772]
[1743375099635,0.60683736,82687.0,82686.0,0.70596772]
[1743375099864,0.61183736,82687.0,82686.0,0.70596772]
[1743375100043,0.61583736,82687.0,82686.0,0.70596772]
[1743375101213,0.554014,82672.0,82652.0,0.0457]
[1743375101400,0.710534,82672.0,82671.0,0.00404677]
[1743375101605,0.71993707,82672.0,82671.0,0.00404677]
[1743375102769,0.72193707,82672.0,82671.0,0.00404677]
[1743375103166,0.72493707,82672.0,82671.0,0.00404677]
[1743375103637,0.72193707,82672.0,82671.0,0.00404677]
[1743375103841,0.57739053,82672.0,82671.0,0.00404677]
[1743375104039,0.56841707,82672.0,82671.0,0.00404677]
[1743375107662,0.59298191,82672.0,82671.0,0.00404677]
[1743375108768,0.241965,82657.0,82652.0,0.04474677]
[1743375109182,0.00934995,82656.0,82652.0,0.04474677]
[1743375110208,0.3,82671.0,82663.0,0.254041]
[1743375110454,0.3,82672.0,82665.0,0.012097]
[1743375110647,0.00935873,82670.0,82664.0,0.0812]
[1743375110776,0.00936462,82671.0,82664.0,0.0812]
[1743375110980,0.00936167,82669.0,82664.0,0.0812]
[1743375111195,0.3,82668.0,82664.0,0.0812]
[1743375111403,0.30936167,82668.0,82664.0,0.0812]
[1743375112163,0.00936167,82668.0,82664.0,0.0812]
[1743375112600,0.001,82668.0,82664.0,0.323142]
[1743375112800,0.00936167,82667.0,82666.0,0.012096]
[1743375113399,0.00936167,82667.0,82664.0,0.335239]
[1743375113958,0.00936167,82667.0,82664.0,0.336239]
[1743375114165,0.253997,82678.0,82664.0,0.336239]
[1743375114359,0.00936167,82666.0,82664.0,0.336239]
[1743375114634,0.241923,82671.0,82665.0,0.012097]
[1743375115030,0.00934938,82670.0,82665.0,0.012097]
[1743375115383,0.00934938,82670.0,82666.0,0.012096]
[1743375115609,0.00934938,82670.0,82669.0,0.382624]
[1743375115813,0.3,82679.0,82672.0,0.254013]
[1743375116198,0.00936556,82678.0,82674.0,0.254008]
[1743375116399,0.00936556,82678.0,82677.0,0.254]
[1743375116603,0.02367696,82689.0,82681.0,0.012094]
[1743375116848,0.241873,82688.0,82678.0,0.253997]
[1743375117039,0.25122876,82688.0,82678.0,0.253997]
[1743375117240,0.00935576,82688.0,82687.0,0.012093]
[1743375117687,0.00014065,82689.0,82688.0,0.329166]
[1743375117814,0.00014065,82689.0,82688.0,0.485606]
[1743375118297,0.00014065,82689.0,82688.0,0.5909904]
[1743375119030,0.00014065,82689.0,82688.0,0.5929904]
[1743375119262,0.00014065,82689.0,82688.0,0.5909904]
[1743375119685,0.00014065,82689.0,82688.0,0.5929904]
[1743375119988,0.00014065,82689.0,82688.0,0.487606]
[1743375123067,0.00014065,82689.0,82688.0,0.485606]
[1743375123604,0.00014065,82689.0,82688.0,0.489606]
[1743375128153,0.00014065,82689.0,82688.0,0.0792]
[1743375128154,0.25410365,82689.0,82688.0,0.0792]
[1743375128376,0.26366765,82689.0,82688.0,0.0043368]
[1743375129384,0.26366765,82689.0,82688.0,0.0003368]
[1743375129795,0.25157465,82689.0,82688.0,0.0013368]
[1743375130025,0.26366765,82689.0,82688.0,0.0013368]
[1743375130163,0.56366765,82689.0,82688.0,0.0013368]
[1743375130589,0.56366765,82689.0,82688.0,0.0003368]
[1743375131417,0.30970465,82689.0,82688.0,0.0124298]
[1743375131676,0.30970465,82689.0,82688.0,0.4860828]
[1743375131677,0.00970465,82689.0,82688.0,0.4860828]
[1743375131872,0.01270465,82689.0,82688.0,0.4860828]
[1743375132073,0.00314065,82689.0,82688.0,0.4860828]
[1743375132598,0.00114065,82689.0,82688.0,0.4860828]
[1743375132779,0.00114065,82689.0,82688.0,0.4870828]
[1743375132929,0.00014065,82689.0,82688.0,0.4870828]
[1743375133137,0.00014065,82689.0,82688.0,0.4880828]
[1743375133342,0.00014065,82689.0,82688.0,0.4860828]
[1743375133547,0.00014065,82689.0,82688.0,0.4890828]
[1743375133889,0.00014065,82689.0,82688.0,0.4920828]
[1743375134782,0.00014065,82689.0,82688.0,0.57263858]
[1743375135207,0.00014065,82689.0,82688.0,0.4920828]
[1743375135772,0.00014065,82689.0,82688.0,0.0818368]
[1743375135980,0.01223365,82689.0,82688.0,0.2380768]
[1743375136181,0.00014065,82689.0,82688.0,0.0063368]
[1743375136380,0.00807869,82689.0,82688.0,0.0063368]
[1743375136947,0.00897894,82689.0,82688.0,0.0063368]
[1743375137359,0.26294194,82689.0,82688.0,0.0063368]
[1743375137566,0.00897894,82689.0,82688.0,0.0063368]
[1743375137765,0.00897894,82689.0,82688.0,0.27776988]
[1743375137968,0.00897894,82689.0,82688.0,0.40416988]
[1743375138211,0.0010409,82689.0,82688.0,0.40116988]
[1743375138347,0.0010409,82689.0,82688.0,0.40516988]
[1743375138549,0.0010409,82689.0,82688.0,0.3877028]
[1743375139069,0.0010409,82689.0,82688.0,0.5298498]
[1743375139272,0.0010409,82689.0,82688.0,0.5399428]
[1743375139615,0.0010409,82689.0,82688.0,0.1625768]
[1743375139785,0.0010409,82689.0,82688.0,0.1595768]
[1743375140002,0.00895361,82689.0,82688.0,0.1686698]
[1743375140237,0.0010409,82689.0,82688.0,0.1736698]
[1743375141056,0.0010409,82689.0,82688.0,0.4155428]
[1743375141260,0.0010409,82689.0,82688.0,0.4105428]
[1743375141476,0.00895361,82689.0,82688.0,0.4155428]
[1743375141708,0.0010409,82689.0,82688.0,0.4195428]
[1743375141903,0.0010409,82689.0,82688.0,0.2543028]
[1743375142130,0.0010409,82689.0,82688.0,0.2603028]
[1743375142656,0.00065717,82693.0,82688.0,0.2603028]
[1743375142657,0.241841,82699.0,82690.0,0.25396]
[1743375143553,0.241841,82699.0,82688.0,0.2603028]
[1743375143554,0.253963,82689.0,82688.0,0.0063368]
[1743375144282,0.253963,82689.0,82688.0,0.0033368]
[1743375144530,0.241858,82693.0,82688.0,0.0033368]
[1743375144723,0.241855,82694.0,82688.0,0.00872048]
[1743375144953,0.241855,82694.0,82690.0,0.001]
[1743375145326,0.012093,82692.0,82690.0,0.001]
[1743375145528,0.253957,82691.0,82690.0,0.001]
[1743375145760,0.253963,82689.0,82688.0,0.0003368]
[1743375145967,0.253963,82689.0,82688.0,0.0013368]
[1743375146139,0.253963,82689.0,82688.0,0.0033368]
[1743375146411,0.553963,82689.0,82688.0,0.0003368]
[1743375148951,0.555963,82689.0,82688.0,0.0003368]
[1743375149518,0.557963,82689.0,82688.0,0.0003368]
[1743375150783,0.555963,82689.0,82688.0,0.0003368]
[1743375152173,0.558963,82689.0,82688.0,0.0003368]
[1743375152432,0.58349291,82689.0,82688.0,0.0003368]
[1743375153269,0.61897999,82689.0,82688.0,0.0003368]
[1743375153481,0.6382415,82689.0,82688.0,0.0003368]
[1743375153888,0.6332415,82689.0,82688.0,0.0003368]
[1743375154318,0.6382415,82689.0,82688.0,0.0003368]
[1743375155133,0.64611978,82689.0,82688.0,0.0003368]
[1743375155307,0.68160686,82689.0,82688.0,0.0003368]
[1743375155536,0.64611978,82689.0,82688.0,0.0003368]
[1743375156056,2.32589078,82689.0,82688.0,8e-07]
[1743375156255,0.72351978,82689.0,82688.0,8e-07]
[1743375156506,0.72351978,82689.0,82651.0,0.0898835]
[1743375156507,0.241975,82653.0,82651.0,0.0898835]
[1743375156662,0.241975,82653.0,82651.0,0.09002415]
[1743375157192,0.0076915,82652.0,82651.0,0.09002415]
[1743375157375,0.01462823,82652.0,82651.0,0.10212315]
[1743375157577,0.00779466,82652.0,82651.0,0.09002415]
[1743375158209,0.241969,82656.0,82651.0,0.09002415]
[1743375158466,0.24977266,82652.0,82651.0,0.09002415]
[1743375158699,0.241978,82652.0,82651.0,0.09402415]
[1743375158882,0.27634212,82652.0,82651.0,0.01282415]
[1743375159111,0.27625077,82652.0,82651.0,0.01282415]
[1743375159233,0.27625077,82652.0,82651.0,0.00882415]
[1743375159651,0.27625077,82652.0,82651.0,0.01182415]
[1743375160092,0.37625077,82652.0,82651.0,0.01182415]
[1743375163559,0.12217477,82652.0,82651.0,0.01182415]
[1743375163761,0.12217477,82652.0,82651.0,0.05054887]
[1743375163896,0.12217477,82652.0,82651.0,0.02425995]
[1743375164098,0.11447145,82652.0,82651.0,0.02425995]
[1743375164805,0.1,82652.0,82651.0,0.14515995]
[1743375171252,0.1,82652.0,82651.0,0.30123995]
[1743375173067,0.1,82652.0,82651.0,0.40762355]
[1743375173269,0.1,82652.0,82651.0,0.30123995]
[1743375174596,0.101,82652.0,82651.0,0.29823995]
[1743375174853,0.102,82652.0,82651.0,0.30023995]
[1743375175228,0.101,82652.0,82651.0,0.30023995]
[1743375175366,0.102,82652.0,82651.0,0.30023995]
[1743375175564,0.101,82652.0,82651.0,0.29823995]
[1743375175968,0.102,82652.0,82651.0,0.30023995]
[1743375176610,0.102,82652.0,82651.0,0.3555432]
[1743375177543,0.102,82652.0,82651.0,0.14415995]
[1743375177679,0.102,82652.0,82651.0,0.30015995]
[1743375180077,0.01455402,82669.0,82666.0,0.012096]
[1743375180506,0.012095,82672.0,82666.0,0.012096]
[1743375180883,0.012095,82672.0,82666.0,0.254031]
[1743375181088,0.254017,82672.0,82666.0,0.254031]
[1743375181508,0.541902,82679.0,82671.0,0.012096]
[1743375181669,0.254008,82675.0,82669.0,0.254023]
[1743375181883,0.241893,82681.0,82674.0,0.012095]
[1743375182114,0.012095,82678.0,82672.0,0.012095]
[1743375182488,0.312094,82682.0,82675.0,0.254003]
[1743375182670,0.012094,82681.0,82676.0,0.012095]
[1743375182879,0.012095,82676.0,82669.0,0.0806]
[1743375183087,0.012095,82676.0,82669.0,0.1152722]
[1743375183279,0.241911,82675.0,82669.0,0.3571982]
[1743375183656,0.012095,82674.0,82669.0,0.3692942]
[1743375183855,0.241911,82675.0,82670.0,0.012096]
[1743375184506,0.254006,82675.0,82670.0,0.012096]
[1743375185063,0.00771735,82674.0,82670.0,0.012096]
[1743375185217,0.00771735,82674.0,82671.0,0.241922]
[1743375185420,0.00771735,82674.0,82673.0,0.012095]
[1743375185631,0.01459842,82681.0,82677.0,0.012095]
[1743375185832,0.012094,82683.0,82677.0,0.012095]
[1743375186473,0.25570577,82682.0,82677.0,0.012095]
[1743375186684,0.3,82693.0,82687.0,0.241875]
[1743375186892,0.0122613,82688.0,82682.0,0.24189]
[1743375187093,0.02628587,82688.0,82682.0,0.24189]
[1743375187299,0.241878,82686.0,82682.0,0.24189]
[1743375188149,0.3,82687.0,82682.0,0.254984]
[1743375188377,0.3,82687.0,82683.0,0.012094]
[1743375188513,0.3,82687.0,82684.0,0.241884]
[1743375188911,0.26815887,82688.0,82684.0,0.241884]
[1743375189373,0.01419287,82688.0,82684.0,0.31796167]
[1743375190257,0.01419287,82688.0,82672.0,0.012095]
[1743375190258,0.012094,82679.0,82672.0,0.012095]
[1743375190496,0.241916,82674.0,82672.0,0.15588]
[1743375190704,0.241897,82680.0,82675.0,0.254005]
[1743375191300,0.012094,82681.0,82675.0,0.254005]
[1743375191928,0.012094,82681.0,82675.0,0.255005]